[Event "Early-Titled-Tuesday-Blitz-February-13-2024"]
[Site "Chess.com"]
[Date "2024.02.13"]
[Round "10"]
[White "PedroGil25"]
[Black "SashaKuzhilniy"]
[Result "1-0"]
[WhiteElo "2452"]
[BlackElo "2588"]
[TimeControl "180+1"]
[EndTime "9:54:57 PST"]
[Termination "PedroGil25 won by resignation"]

1. e4 {[%clk 0:03:00.9]} 1... b6 {[%clk 0:03:00.9]} 2. d4 {[%clk 0:02:52.9]}
2... Bb7 {[%clk 0:03:01.1]} 3. Bd3 {[%clk 0:02:48.1]} 3... e6 {[%clk 0:02:59.8]}
4. Nf3 {[%clk 0:02:45.9]} 4... Nf6 {[%clk 0:02:56]} 5. Nbd2 {[%clk 0:02:46.2]}
5... d5 {[%clk 0:02:54.7]} 6. e5 {[%clk 0:02:46.4]} 6... Ne4 {[%clk 0:02:54.8]}
7. Qe2 {[%clk 0:02:46.9]} 7... Nxd2 {[%clk 0:02:54.2]} 8. Bxd2 {[%clk
0:02:47.8]} 8... c5 {[%clk 0:02:54.4]} 9. c3 {[%clk 0:02:48.3]} 9... Qc8 {[%clk
0:02:53.9]} 10. b4 {[%clk 0:02:42.5]} 10... Nc6 {[%clk 0:02:45.4]} 11. Rc1
{[%clk 0:02:38]} 11... c4 {[%clk 0:02:40.7]} 12. Bc2 {[%clk 0:02:37.6]} 12... a5
{[%clk 0:02:38]} 13. b5 {[%clk 0:02:35.9]} 13... Nb8 {[%clk 0:02:36]} 14. a4
{[%clk 0:02:36.3]} 14... Nd7 {[%clk 0:02:31.8]} 15. O-O {[%clk 0:02:35.1]} 15...
Be7 {[%clk 0:02:31]} 16. h4 {[%clk 0:02:34.4]} 16... h6 {[%clk 0:02:29.2]} 17.
h5 {[%clk 0:02:32.3]} 17... Qc7 {[%clk 0:02:28.9]} 18. Nh2 {[%clk 0:02:32.5]}
18... O-O-O {[%clk 0:02:26.9]} 19. f4 {[%clk 0:02:32.7]} 19... Rhe8 {[%clk
0:02:03.2]} 20. f5 {[%clk 0:02:31.9]} 20... f6 {[%clk 0:01:48.1]} 21. fxe6
{[%clk 0:02:28]} 21... Nf8 {[%clk 0:01:48]} 22. exf6 {[%clk 0:02:23.9]} 22...
Bxf6 {[%clk 0:01:48.9]} 23. Bf5 {[%clk 0:02:23.8]} 23... Kb8 {[%clk 0:01:47.1]}
24. Bf4 {[%clk 0:02:22.9]} 1-0

[Event "Early-Titled-Tuesday-Blitz-February-13-2024"]
[Site "Chess.com"]
[Date "2024.02.13"]
[Round "10"]
[White "Lion-Al-Messi"]
[Black "egnfanclub"]
[Result "1-0"]
[WhiteElo "2557"]
[BlackElo "2355"]
[TimeControl "180+1"]
[EndTime "9:55:40 PST"]
[Termination "Lion-Al-Messi won by resignation"]

1. e4 {[%clk 0:02:58.9]} 1... e5 {[%clk 0:03:00.1]} 2. Nf3 {[%clk 0:02:58.9]}
2... Nc6 {[%clk 0:02:57.9]} 3. Bb5 {[%clk 0:02:59.2]} 3... a6 {[%clk 0:02:58.1]}
4. Ba4 {[%clk 0:02:59.6]} 4... d6 {[%clk 0:02:57.2]} 5. O-O {[%clk 0:02:57.8]}
5... Bg4 {[%clk 0:02:56.6]} 6. h3 {[%clk 0:02:56.8]} 6... h5 {[%clk 0:02:56.3]}
7. c3 {[%clk 0:02:52.9]} 7... Qf6 {[%clk 0:02:55.7]} 8. d4 {[%clk 0:02:48.8]}
8... b5 {[%clk 0:02:50.2]} 9. Bb3 {[%clk 0:02:47.5]} 9... Bxf3 {[%clk
0:02:49.8]} 10. Qxf3 {[%clk 0:02:46.6]} 10... Qxf3 {[%clk 0:02:49.9]} 11. gxf3
{[%clk 0:02:47.5]} 11... exd4 {[%clk 0:02:49.1]} 12. Rd1 {[%clk 0:02:38.3]}
12... dxc3 {[%clk 0:02:29.9]} 13. Nxc3 {[%clk 0:02:39.2]} 13... Nf6 {[%clk
0:02:26.5]} 14. Bg5 {[%clk 0:02:38.6]} 14... Be7 {[%clk 0:02:24.9]} 15. Bxf6
{[%clk 0:02:37.8]} 15... Bxf6 {[%clk 0:02:24.6]} 16. Bd5 {[%clk 0:02:37.8]}
16... Kd7 {[%clk 0:02:23.6]} 17. Rac1 {[%clk 0:02:37.3]} 17... Rab8 {[%clk
0:02:16.5]} 18. Bxc6+ {[%clk 0:02:35.9]} 18... Kxc6 {[%clk 0:02:15.6]} 19. Nd5+
{[%clk 0:02:36.8]} 19... Kd7 {[%clk 0:02:08.8]} 20. Rxc7+ {[%clk 0:02:37.3]}
20... Ke8 {[%clk 0:02:01.2]} 21. Nxf6+ {[%clk 0:02:36.5]} 21... gxf6 {[%clk
0:02:00.8]} 22. Rxd6 {[%clk 0:02:36.9]} 22... Rg8+ {[%clk 0:01:53.6]} 23. Kf1
{[%clk 0:02:36.6]} 23... a5 {[%clk 0:01:46.7]} 24. Rxf6 {[%clk 0:02:35.3]} 24...
Rd8 {[%clk 0:01:36]} 25. Rfxf7 {[%clk 0:02:34.6]} 25... Rd1+ {[%clk 0:01:35.9]}
26. Ke2 {[%clk 0:02:34.4]} 26... Rgg1 {[%clk 0:01:36.6]} 27. Ke3 {[%clk
0:02:28.2]} 27... Rc1 {[%clk 0:01:12]} 28. Rxc1 {[%clk 0:02:26.1]} 28... Rxc1
{[%clk 0:01:11]} 29. Rf5 {[%clk 0:02:26.2]} 1-0

[Event "Early-Titled-Tuesday-Blitz-February-13-2024"]
[Site "Chess.com"]
[Date "2024.02.13"]
[Round "10"]
[White "Austen48"]
[Black "maurovargas01"]
[Result "1-0"]
[WhiteElo "2231"]
[BlackElo "1883"]
[TimeControl "180+1"]
[EndTime "9:55:56 PST"]
[Termination "Austen48 won by resignation"]

1. d4 {[%clk 0:02:59.1]} 1... d5 {[%clk 0:02:59.8]} 2. c4 {[%clk 0:02:58.2]}
2... e6 {[%clk 0:02:59.6]} 3. Nc3 {[%clk 0:02:57.3]} 3... c6 {[%clk 0:02:59.5]}
4. Nf3 {[%clk 0:02:53.9]} 4... dxc4 {[%clk 0:02:58.1]} 5. e4 {[%clk 0:02:50.7]}
5... b5 {[%clk 0:02:58]} 6. Be2 {[%clk 0:02:49.9]} 6... Bb4 {[%clk 0:02:57.5]}
7. O-O {[%clk 0:02:47.7]} 7... Bb7 {[%clk 0:02:56.4]} 8. a3 {[%clk 0:02:39]}
8... Bxc3 {[%clk 0:02:55.5]} 9. bxc3 {[%clk 0:02:37.1]} 9... Nd7 {[%clk
0:02:55.7]} 10. e5 {[%clk 0:02:32.1]} 10... Ne7 {[%clk 0:02:50.3]} 11. Rb1
{[%clk 0:02:30.2]} 11... a6 {[%clk 0:02:48.3]} 12. Bxc4 {[%clk 0:02:24.7]} 12...
Qc8 {[%clk 0:02:39.9]} 13. Bd3 {[%clk 0:02:22.7]} 13... Ng6 {[%clk 0:02:20.1]}
14. h4 {[%clk 0:02:21.1]} 14... h5 {[%clk 0:02:19.1]} 15. Bxg6 {[%clk
0:02:17.8]} 15... fxg6 {[%clk 0:02:18.5]} 16. Qd3 {[%clk 0:02:15.5]} 16... Nf8
{[%clk 0:02:15.4]} 17. Ng5 {[%clk 0:02:14.6]} 17... Qd7 {[%clk 0:02:11.3]} 18.
a4 {[%clk 0:02:12.7]} 18... O-O-O {[%clk 0:02:09.2]} 19. Ba3 {[%clk 0:01:56]}
19... Qd5 {[%clk 0:02:01.3]} 20. Bxf8 {[%clk 0:01:44.4]} 20... Rhxf8 {[%clk
0:01:59.2]} 21. Qxg6 {[%clk 0:01:43.7]} 21... c5 {[%clk 0:01:57.2]} 22. Qxe6+
{[%clk 0:01:43.7]} 22... Kb8 {[%clk 0:01:56.4]} 23. Qxd5 {[%clk 0:01:42.7]}
23... Bxd5 {[%clk 0:01:56.3]} 24. axb5 {[%clk 0:01:41.9]} 24... axb5 {[%clk
0:01:48.2]} 25. Rxb5+ {[%clk 0:01:40.7]} 25... Kc7 {[%clk 0:01:45.8]} 26. Rxc5+
{[%clk 0:01:40.3]} 26... Bc6 {[%clk 0:01:44.8]} 27. Ne6+ {[%clk 0:01:37.7]}
27... Kb6 {[%clk 0:01:44]} 28. Rb1+ {[%clk 0:01:33.2]} 1-0

[Event "Early-Titled-Tuesday-Blitz-February-13-2024"]
[Site "Chess.com"]
[Date "2024.02.13"]
[Round "10"]
[White "MiguelEduardoGB"]
[Black "Conejoviejo67"]
[Result "0-1"]
[WhiteElo "2152"]
[BlackElo "2444"]
[TimeControl "180+1"]
[EndTime "9:56:03 PST"]
[Termination "Conejoviejo67 won by resignation"]

1. Nf3 {[%clk 0:03:00.9]} 1... g6 {[%clk 0:02:56.4]} 2. g3 {[%clk 0:02:57]} 2...
Bg7 {[%clk 0:02:56.7]} 3. Bg2 {[%clk 0:02:57.4]} 3... e5 {[%clk 0:02:57]} 4. O-O
{[%clk 0:02:57.6]} 4... Nc6 {[%clk 0:02:57.5]} 5. d3 {[%clk 0:02:57.4]} 5... d6
{[%clk 0:02:57.5]} 6. c4 {[%clk 0:02:55.9]} 6... f5 {[%clk 0:02:57.3]} 7. Nc3
{[%clk 0:02:55]} 7... Nf6 {[%clk 0:02:57.6]} 8. Nd2 {[%clk 0:02:55]} 8... O-O
{[%clk 0:02:57.2]} 9. a3 {[%clk 0:02:55]} 9... a5 {[%clk 0:02:57.1]} 10. Nd5
{[%clk 0:02:52.7]} 10... Be6 {[%clk 0:02:56.5]} 11. Rb1 {[%clk 0:02:32.1]} 11...
Rb8 {[%clk 0:02:41]} 12. b4 {[%clk 0:02:30.3]} 12... axb4 {[%clk 0:02:41.9]} 13.
axb4 {[%clk 0:02:30.2]} 13... Ne7 {[%clk 0:02:42.2]} 14. Nxe7+ {[%clk
0:02:15.7]} 14... Qxe7 {[%clk 0:02:43.1]} 15. b5 {[%clk 0:02:16.3]} 15... Kh8
{[%clk 0:02:23]} 16. b6 {[%clk 0:02:13.6]} 16... c6 {[%clk 0:02:22.5]} 17. Bb2
{[%clk 0:02:03.3]} 17... Nd7 {[%clk 0:02:19.9]} 18. Qb3 {[%clk 0:02:02.3]} 18...
Ra8 {[%clk 0:02:18.6]} 19. Ba3 {[%clk 0:02:00.3]} 19... Ra6 {[%clk 0:02:16.3]}
20. Qc2 {[%clk 0:01:27.6]} 20... Rxa3 {[%clk 0:02:15]} 21. Rb4 {[%clk
0:01:08.5]} 21... Nc5 {[%clk 0:02:04.9]} 22. Rfb1 {[%clk 0:01:08]} 22... Bd7
{[%clk 0:01:57.5]} 23. e3 {[%clk 0:01:08.2]} 23... Nxd3 {[%clk 0:01:53.3]} 0-1

[Event "Early-Titled-Tuesday-Blitz-February-13-2024"]
[Site "Chess.com"]
[Date "2024.02.13"]
[Round "10"]
[White "LeoWin2012"]
[Black "ChessBliss09"]
[Result "0-1"]
[WhiteElo "2221"]
[BlackElo "2141"]
[TimeControl "180+1"]
[EndTime "9:56:05 PST"]
[Termination "ChessBliss09 won by resignation"]

1. e4 {[%clk 0:02:57]} 1... e5 {[%clk 0:02:59.5]} 2. Nf3 {[%clk 0:02:56.5]} 2...
Nc6 {[%clk 0:02:59.7]} 3. d4 {[%clk 0:02:55.1]} 3... exd4 {[%clk 0:02:59.1]} 4.
Nxd4 {[%clk 0:02:56]} 4... Bc5 {[%clk 0:02:58.4]} 5. Nb3 {[%clk 0:02:56]} 5...
Bb6 {[%clk 0:02:57.8]} 6. Nc3 {[%clk 0:02:56.5]} 6... d6 {[%clk 0:02:57.3]} 7.
Qe2 {[%clk 0:02:56.4]} 7... Nf6 {[%clk 0:02:56.4]} 8. Be3 {[%clk 0:02:55.4]}
8... Be6 {[%clk 0:02:55.7]} 9. f3 {[%clk 0:02:53.6]} 9... a5 {[%clk 0:02:53.7]}
10. O-O-O {[%clk 0:02:50.4]} 10... a4 {[%clk 0:02:50.3]} 11. Nd4 {[%clk
0:02:50.3]} 11... Bxd4 {[%clk 0:02:32]} 12. Bxd4 {[%clk 0:02:51.2]} 12... a3
{[%clk 0:02:26.1]} 13. b3 {[%clk 0:02:43.8]} 13... Nxd4 {[%clk 0:02:19.8]} 14.
Rxd4 {[%clk 0:02:42.7]} 14... c5 {[%clk 0:02:19.8]} 15. Rd1 {[%clk 0:02:38.7]}
15... O-O {[%clk 0:02:17.5]} 16. e5 {[%clk 0:02:37.3]} 16... Nh5 {[%clk
0:01:57.1]} 17. Rxd6 {[%clk 0:02:33.6]} 17... Qa5 {[%clk 0:01:56]} 18. Ne4
{[%clk 0:02:22.7]} 18... c4 {[%clk 0:01:54]} 19. Qd2 {[%clk 0:02:18.6]} 19...
cxb3 {[%clk 0:01:43.3]} 20. cxb3 {[%clk 0:02:14]} 20... Qxe5 {[%clk 0:01:40.6]}
21. Qd4 {[%clk 0:02:09.2]} 21... Qf4+ {[%clk 0:01:31.6]} 22. Qd2 {[%clk
0:02:07]} 22... Rfc8+ {[%clk 0:01:31.3]} 23. Kd1 {[%clk 0:02:05.6]} 23... Bxb3+
{[%clk 0:01:22.1]} 24. axb3 {[%clk 0:01:59.7]} 24... a2 {[%clk 0:01:13.7]} 25.
Nf6+ {[%clk 0:01:56.7]} 25... gxf6 {[%clk 0:01:10.9]} 26. Qxf4 {[%clk
0:01:55.7]} 26... a1=Q+ {[%clk 0:01:09.2]} 27. Ke2 {[%clk 0:01:55.1]} 27...
Nxf4+ {[%clk 0:01:09.3]} 28. Kf2 {[%clk 0:01:55.4]} 0-1

[Event "Early-Titled-Tuesday-Blitz-February-13-2024"]
[Site "Chess.com"]
[Date "2024.02.13"]
[Round "10"]
[White "mr_gustavo"]
[Black "Yaacovn"]
[Result "0-1"]
[WhiteElo "2734"]
[BlackElo "2924"]
[TimeControl "180+1"]
[EndTime "9:56:11 PST"]
[Termination "Yaacovn won by resignation"]

1. d4 {[%clk 0:03:00.9]} 1... Nf6 {[%clk 0:03:00]} 2. c4 {[%clk 0:02:48.9]} 2...
e5 {[%clk 0:02:59.9]} 3. dxe5 {[%clk 0:02:46.9]} 3... Ne4 {[%clk 0:02:59.7]} 4.
Nf3 {[%clk 0:02:46.1]} 4... Nc6 {[%clk 0:02:59.8]} 5. e3 {[%clk 0:02:45.1]} 5...
d6 {[%clk 0:02:59.7]} 6. exd6 {[%clk 0:02:45.1]} 6... Bxd6 {[%clk 0:03:00.6]} 7.
Bd3 {[%clk 0:02:43.9]} 7... Bb4+ {[%clk 0:02:57.6]} 8. Ke2 {[%clk 0:02:41.6]}
8... Qe7 {[%clk 0:02:57.9]} 9. a3 {[%clk 0:02:40.9]} 9... Bd6 {[%clk 0:02:56.2]}
10. b4 {[%clk 0:02:37.4]} 10... Bg4 {[%clk 0:02:54.9]} 11. Bb2 {[%clk
0:02:36.7]} 11... O-O-O {[%clk 0:02:54.9]} 12. Qc2 {[%clk 0:02:34.7]} 12... f5
{[%clk 0:02:50.9]} 13. h3 {[%clk 0:02:31.8]} 13... Bh5 {[%clk 0:02:49.9]} 14.
Re1 {[%clk 0:02:19.6]} 14... Bxb4 {[%clk 0:02:45.4]} 15. Bxe4 {[%clk 0:01:58.2]}
15... fxe4 {[%clk 0:02:43.5]} 16. axb4 {[%clk 0:01:57.7]} 16... Nxb4 {[%clk
0:02:40.6]} 17. Qb3 {[%clk 0:01:29]} 17... exf3+ {[%clk 0:02:30.1]} 18. gxf3
{[%clk 0:01:29.9]} 18... Rhf8 {[%clk 0:02:30.2]} 19. Nd2 {[%clk 0:01:25.8]}
19... Rxf3 {[%clk 0:01:44.4]} 20. Nxf3 {[%clk 0:01:22]} 20... Qe4 {[%clk
0:01:41.3]} 21. Bd4 {[%clk 0:01:03.3]} 21... Rxd4 {[%clk 0:01:36.5]} 0-1

[Event "Early-Titled-Tuesday-Blitz-February-13-2024"]
[Site "Chess.com"]
[Date "2024.02.13"]
[Round "10"]
[White "Cheer_Down"]
[Black "rachidhuilda"]
[Result "1-0"]
[WhiteElo "2491"]
[BlackElo "2317"]
[TimeControl "180+1"]
[EndTime "9:56:37 PST"]
[Termination "Cheer_Down won by resignation"]

1. e4 {[%clk 0:02:50.7]} 1... c6 {[%clk 0:02:59]} 2. d4 {[%clk 0:02:49.9]} 2...
d5 {[%clk 0:02:49.3]} 3. e5 {[%clk 0:02:49.4]} 3... Bf5 {[%clk 0:02:48.9]} 4. h4
{[%clk 0:02:48.5]} 4... h5 {[%clk 0:02:48.1]} 5. Bd3 {[%clk 0:02:45.1]} 5...
Bxd3 {[%clk 0:02:46.2]} 6. Qxd3 {[%clk 0:02:46]} 6... e6 {[%clk 0:02:46.1]} 7.
Bg5 {[%clk 0:02:45.3]} 7... Qa5+ {[%clk 0:02:44.4]} 8. Nd2 {[%clk 0:02:40.5]}
8... Qa6 {[%clk 0:02:44.8]} 9. c4 {[%clk 0:02:40.4]} 9... Bb4 {[%clk 0:02:40.7]}
10. b3 {[%clk 0:02:34.6]} 10... Ne7 {[%clk 0:02:25.9]} 11. Ne2 {[%clk
0:02:33.8]} 11... Nd7 {[%clk 0:02:24.1]} 12. O-O {[%clk 0:02:31.8]} 12... Nf5
{[%clk 0:02:24.2]} 13. Ng3 {[%clk 0:02:30.4]} 13... Bxd2 {[%clk 0:02:15]} 14.
Nxf5 {[%clk 0:02:27.9]} 14... exf5 {[%clk 0:02:03.9]} 15. Bxd2 {[%clk
0:02:16.9]} 15... g6 {[%clk 0:01:54]} 16. e6 {[%clk 0:02:09.8]} 16... fxe6
{[%clk 0:01:54.3]} 17. Qg3 {[%clk 0:02:09.6]} 17... Nf8 {[%clk 0:01:37.8]} 18.
cxd5 {[%clk 0:02:03.1]} 18... cxd5 {[%clk 0:01:34.9]} 19. Rac1 {[%clk
0:02:02.4]} 19... Rd8 {[%clk 0:01:28.7]} 20. Bb4 {[%clk 0:01:58.6]} 20... Kf7
{[%clk 0:01:22.8]} 21. Rc7+ {[%clk 0:01:52.6]} 21... Rd7 {[%clk 0:01:17.1]} 22.
Bxf8 {[%clk 0:01:52.4]} 22... Rxc7 {[%clk 0:01:16.7]} 23. Qxc7+ {[%clk
0:01:47.4]} 23... Kxf8 {[%clk 0:01:16.9]} 24. Rc1 {[%clk 0:01:44]} 24... Rg8
{[%clk 0:01:13.9]} 25. Qh7 {[%clk 0:01:37.5]} 25... b6 {[%clk 0:00:57.6]} 26.
Rc7 {[%clk 0:01:36.4]} 1-0

[Event "Early-Titled-Tuesday-Blitz-February-13-2024"]
[Site "Chess.com"]
[Date "2024.02.13"]
[Round "10"]
[White "carloseduar100"]
[Black "campochess"]
[Result "1/2-1/2"]
[WhiteElo "2338"]
[BlackElo "2150"]
[TimeControl "180+1"]
[EndTime "9:56:37 PST"]
[Termination "Game drawn by agreement"]

1. g3 {[%clk 0:02:40.8]} 1... c6 {[%clk 0:02:34.7]} 2. Bg2 {[%clk 0:02:38.5]}
2... d5 {[%clk 0:02:30.2]} 3. e3 {[%clk 0:02:39.4]} 3... e5 {[%clk 0:02:29.9]}
4. d3 {[%clk 0:02:39.7]} 4... f5 {[%clk 0:02:29]} 5. c3 {[%clk 0:02:40.5]} 5...
Nf6 {[%clk 0:02:29.1]} 6. b3 {[%clk 0:02:41.1]} 6... g6 {[%clk 0:02:28.7]} 7.
Bb2 {[%clk 0:02:41.6]} 7... Bg7 {[%clk 0:02:28.1]} 8. Ne2 {[%clk 0:02:42.3]}
8... Nbd7 {[%clk 0:02:28.2]} 9. Nd2 {[%clk 0:02:43.2]} 9... O-O {[%clk
0:02:28.1]} 10. O-O {[%clk 0:02:44.1]} 10... a5 {[%clk 0:02:26.1]} 11. a3 {[%clk
0:02:45]} 11... Re8 {[%clk 0:02:23.5]} 12. f3 {[%clk 0:02:44.9]} 12... Nf8
{[%clk 0:02:23.4]} 13. h4 {[%clk 0:02:45]} 13... Kh8 {[%clk 0:02:15.4]} 14. c4
{[%clk 0:02:45]} 14... b5 {[%clk 0:02:04.7]} 15. cxb5 {[%clk 0:02:43.8]} 15...
cxb5 {[%clk 0:02:04]} 16. d4 {[%clk 0:02:44.1]} 16... e4 {[%clk 0:02:03.1]} 17.
fxe4 {[%clk 0:02:43.9]} 17... Nxe4 {[%clk 0:02:00]} 18. Nxe4 {[%clk 0:02:39]}
18... fxe4 {[%clk 0:01:59.9]} 19. Rc1 {[%clk 0:02:37.8]} 19... Bg4 {[%clk
0:01:57.7]} 20. Qd2 {[%clk 0:02:37.8]} 20... Qd7 {[%clk 0:01:54.7]} 21. Nf4
{[%clk 0:02:37.8]} 21... Ne6 {[%clk 0:01:52.7]} 22. Nxe6 {[%clk 0:02:29.9]}
22... Qxe6 {[%clk 0:01:50.8]} 23. Rc7 {[%clk 0:02:30.3]} 23... Re7 {[%clk
0:01:47.1]} 24. Rfc1 {[%clk 0:02:29.2]} 24... Rae8 {[%clk 0:01:45.9]} 25. Qxa5
{[%clk 0:02:28.7]} 25... Bh6 {[%clk 0:01:42.4]} 26. Qd2 {[%clk 0:02:25.9]} 26...
Qd6 {[%clk 0:01:33.8]} 27. Rxe7 {[%clk 0:02:24.5]} 27... Rxe7 {[%clk 0:01:31.8]}
28. Qf2 {[%clk 0:02:22.5]} 28... Kg7 {[%clk 0:01:27.4]} 29. Kh2 {[%clk
0:02:00.9]} 29... Rf7 {[%clk 0:01:25.4]} 30. Qd2 {[%clk 0:02:00.9]} 30... Bf3
{[%clk 0:01:20.4]} 31. a4 {[%clk 0:01:51.7]} 31... bxa4 {[%clk 0:01:18.4]} 32.
bxa4 {[%clk 0:01:51.6]} 32... Bxg2 {[%clk 0:01:18.4]} 33. Qxg2 {[%clk
0:01:49.7]} 33... Rf3 {[%clk 0:01:18.1]} 34. a5 {[%clk 0:01:48.2]} 34... Bxe3
{[%clk 0:01:13.4]} 1/2-1/2

[Event "Early-Titled-Tuesday-Blitz-February-13-2024"]
[Site "Chess.com"]
[Date "2024.02.13"]
[Round "10"]
[White "Alexander_Donchenko"]
[Black "blitzking1729"]
[Result "1-0"]
[WhiteElo "2925"]
[BlackElo "2725"]
[TimeControl "180+1"]
[EndTime "9:56:41 PST"]
[Termination "Alexander_Donchenko won by resignation"]

1. Nc3 {[%clk 0:03:00.9]} 1... Nf6 {[%clk 0:02:53.1]} 2. e4 {[%clk 0:02:58.1]}
2... d5 {[%clk 0:02:53.3]} 3. exd5 {[%clk 0:02:56.9]} 3... Nxd5 {[%clk
0:02:53.4]} 4. Bc4 {[%clk 0:02:57.5]} 4... c6 {[%clk 0:02:50.1]} 5. Nge2 {[%clk
0:02:56.4]} 5... g6 {[%clk 0:02:49]} 6. d4 {[%clk 0:02:54.4]} 6... Bg7 {[%clk
0:02:48.9]} 7. Bg5 {[%clk 0:02:50.9]} 7... O-O {[%clk 0:02:46]} 8. Qd2 {[%clk
0:02:50.5]} 8... Be6 {[%clk 0:02:45.6]} 9. Bb3 {[%clk 0:02:48.8]} 9... a5 {[%clk
0:02:43.7]} 10. Bxd5 {[%clk 0:02:37.2]} 10... Bxd5 {[%clk 0:02:43.2]} 11. f3
{[%clk 0:02:32.5]} 11... Be6 {[%clk 0:02:39.7]} 12. h4 {[%clk 0:02:31.1]} 12...
h5 {[%clk 0:02:39.1]} 13. O-O-O {[%clk 0:02:30.2]} 13... Nd7 {[%clk 0:02:31.7]}
14. Nf4 {[%clk 0:02:28.5]} 14... Bf5 {[%clk 0:02:30.7]} 15. g4 {[%clk
0:02:25.2]} 15... hxg4 {[%clk 0:02:30.1]} 16. fxg4 {[%clk 0:02:25.6]} 16... Bxg4
{[%clk 0:02:29.7]} 17. Rdg1 {[%clk 0:02:26.3]} 17... e5 {[%clk 0:02:17.2]} 18.
Bxd8 {[%clk 0:02:24.7]} 18... Raxd8 {[%clk 0:02:01.3]} 19. Rxg4 {[%clk
0:02:23.8]} 19... exf4 {[%clk 0:02:01.3]} 20. h5 {[%clk 0:02:22.4]} 20... Nf6
{[%clk 0:02:01.1]} 21. Rxf4 {[%clk 0:02:22.3]} 21... Nxh5 {[%clk 0:01:58.1]} 22.
Rxh5 {[%clk 0:02:19.5]} 22... gxh5 {[%clk 0:01:58.3]} 23. Qg2 {[%clk 0:02:20]}
23... Rd6 {[%clk 0:01:49.7]} 24. Rf5 {[%clk 0:02:15.6]} 24... Rg6 {[%clk
0:01:49.5]} 25. Qf2 {[%clk 0:02:13.6]} 25... Re8 {[%clk 0:01:44.4]} 26. Rxh5
{[%clk 0:02:10.2]} 26... Bh6+ {[%clk 0:01:41.9]} 27. Rxh6 {[%clk 0:02:00.6]}
27... Rxh6 {[%clk 0:01:40.2]} 28. b3 {[%clk 0:02:01]} 28... Kg7 {[%clk
0:01:29.4]} 29. Qf5 {[%clk 0:01:59.5]} 29... b6 {[%clk 0:01:24.5]} 30. Ne4
{[%clk 0:01:58.5]} 30... Rg6 {[%clk 0:01:23.4]} 31. d5 {[%clk 0:01:56.3]} 31...
cxd5 {[%clk 0:01:23.2]} 32. Qxd5 {[%clk 0:01:57.2]} 32... Rge6 {[%clk 0:01:15]}
33. Qd4+ {[%clk 0:01:55.5]} 33... Kg6 {[%clk 0:01:14.8]} 34. Nd6 {[%clk
0:01:54.9]} 34... R8e7 {[%clk 0:00:58.7]} 35. Qg4+ {[%clk 0:01:53.3]} 35... Kh7
{[%clk 0:00:58.5]} 36. Nf5 {[%clk 0:01:52.9]} 1-0

[Event "Early-Titled-Tuesday-Blitz-February-13-2024"]
[Site "Chess.com"]
[Date "2024.02.13"]
[Round "10"]
[White "Felix-Rose"]
[Black "Canal_Showdrez"]
[Result "1-0"]
[WhiteElo "2234"]
[BlackElo "2080"]
[TimeControl "180+1"]
[EndTime "9:56:53 PST"]
[Termination "Felix-Rose won on time"]

1. e4 {[%clk 0:02:59.4]} 1... c5 {[%clk 0:02:00.6]} 2. Nf3 {[%clk 0:02:57.8]}
2... Nc6 {[%clk 0:02:00.9]} 3. d4 {[%clk 0:02:57.4]} 3... cxd4 {[%clk
0:02:01.8]} 4. Nxd4 {[%clk 0:02:58.3]} 4... Nf6 {[%clk 0:02:01.9]} 5. Nc3 {[%clk
0:02:58.6]} 5... e5 {[%clk 0:01:58.7]} 6. Ndb5 {[%clk 0:02:58.9]} 6... d6 {[%clk
0:01:57.3]} 7. Bg5 {[%clk 0:02:58.8]} 7... a6 {[%clk 0:01:54.3]} 8. Na3 {[%clk
0:02:59]} 8... b5 {[%clk 0:01:49.2]} 9. Nd5 {[%clk 0:02:54.9]} 9... Be7 {[%clk
0:01:49]} 10. Bxf6 {[%clk 0:02:55.3]} 10... gxf6 {[%clk 0:01:45.1]} 11. Bd3
{[%clk 0:02:44.1]} 11... Be6 {[%clk 0:01:41.8]} 12. c4 {[%clk 0:02:37.7]} 12...
b4 {[%clk 0:01:40.8]} 13. Nc2 {[%clk 0:02:35.9]} 13... a5 {[%clk 0:01:41.1]} 14.
Nce3 {[%clk 0:02:33.8]} 14... Qb8 {[%clk 0:01:20.7]} 15. O-O {[%clk 0:02:33.6]}
15... Nd4 {[%clk 0:01:07.8]} 16. Qh5 {[%clk 0:02:29.9]} 16... Kd7 {[%clk
0:00:27.3]} 17. Qh6 {[%clk 0:02:24.5]} 17... Qd8 {[%clk 0:00:21.5]} 18. f4
{[%clk 0:02:20.9]} 18... Rb8 {[%clk 0:00:20.4]} 19. Nxe7 {[%clk 0:02:12.8]}
19... Qxe7 {[%clk 0:00:19.3]} 20. f5 {[%clk 0:02:12.3]} 20... Bxf5 {[%clk
0:00:14.7]} 21. Nxf5 {[%clk 0:02:10]} 21... Nxf5 {[%clk 0:00:14]} 22. Rxf5
{[%clk 0:02:09.1]} 1-0

[Event "Early-Titled-Tuesday-Blitz-February-13-2024"]
[Site "Chess.com"]
[Date "2024.02.13"]
[Round "10"]
[White "PavelShkapenko"]
[Black "GasconJR"]
[Result "1-0"]
[WhiteElo "2757"]
[BlackElo "2576"]
[TimeControl "180+1"]
[EndTime "9:56:54 PST"]
[Termination "PavelShkapenko won by resignation"]

1. e4 {[%clk 0:03:00.9]} 1... c5 {[%clk 0:02:59.6]} 2. c3 {[%clk 0:02:53.3]}
2... Nf6 {[%clk 0:02:56.3]} 3. e5 {[%clk 0:02:53.1]} 3... Nd5 {[%clk 0:02:56.8]}
4. d4 {[%clk 0:02:54]} 4... cxd4 {[%clk 0:02:56.6]} 5. cxd4 {[%clk 0:02:54.9]}
5... d6 {[%clk 0:02:56.7]} 6. Nf3 {[%clk 0:02:54.9]} 6... Nc6 {[%clk 0:02:56.8]}
7. Bc4 {[%clk 0:02:55]} 7... dxe5 {[%clk 0:02:57.1]} 8. Nxe5 {[%clk 0:02:54.6]}
8... Nxe5 {[%clk 0:02:32]} 9. dxe5 {[%clk 0:02:53.1]} 9... e6 {[%clk 0:02:22.7]}
10. O-O {[%clk 0:02:52.4]} 10... Be7 {[%clk 0:02:22.5]} 11. Qg4 {[%clk
0:02:52.3]} 11... g6 {[%clk 0:02:07.4]} 12. Bh6 {[%clk 0:02:50.8]} 12... Qc7
{[%clk 0:02:03.5]} 13. Qe4 {[%clk 0:02:27.3]} 13... Bd7 {[%clk 0:02:01.4]} 14.
Rc1 {[%clk 0:02:09.8]} 14... Bc6 {[%clk 0:02:00.6]} 15. Bb5 {[%clk 0:01:58.2]}
15... Rc8 {[%clk 0:01:24.4]} 16. Bxc6+ {[%clk 0:01:57.6]} 16... bxc6 {[%clk
0:01:25.3]} 17. Nd2 {[%clk 0:01:57.2]} 17... Nb6 {[%clk 0:01:07.7]} 18. Rc2
{[%clk 0:01:54.3]} 18... Qd8 {[%clk 0:01:00]} 19. Rxc6 {[%clk 0:01:46.5]} 19...
Rxc6 {[%clk 0:00:43.2]} 20. Qxc6+ {[%clk 0:01:46.1]} 20... Qd7 {[%clk
0:00:39.8]} 21. Qe4 {[%clk 0:01:36.6]} 21... g5 {[%clk 0:00:35.4]} 22. Nf3
{[%clk 0:01:34.7]} 22... Rg8 {[%clk 0:00:34.2]} 23. Qxh7 {[%clk 0:01:30.3]} 1-0